bitfinex/quotes_ETHUSD_20230905
["timestamp","ask_amount","ask_price","bid_price","bid_amount"]
[1693917772297,5.21117868,1632.1,1632.0,7.45545]
[1693917772298,5.73229655,1632.1,1632.0,7.45545]
[1693917777751,2.14416442,1632.1,1632.0,19.71035]
[1693917779418,2.54424884,1632.1,1632.0,19.71035]
[1693917782027,2.54424884,1632.1,1632.0,21.40971246]
[1693917782229,2.54424884,1632.1,1632.0,22.73771246]
[1693917783244,0.40008442,1632.1,1632.0,25.73771246]
[1693917783439,0.40008442,1632.1,1632.0,29.18908271]
[1693917783643,2.1438208,1632.3,1632.0,29.18908271]
[1693917783844,2.1438208,1632.3,1632.2,1.328]
[1693917784079,2.1438208,1632.3,1632.2,19.7081]
[1693917784256,2.1438208,1632.3,1632.2,22.7081]
[1693917784475,2.1438208,1632.3,1632.2,27.02339018]
[1693917784971,0.101,1632.4,1632.2,27.02339018]
[1693917785177,0.101,1632.4,1632.3,4.328]
[1693917785325,0.101,1632.4,1632.3,22.70696]
[1693917785525,6.82215521,1632.5,1632.4,1.69936246]
[1693917785526,2.24455708,1632.5,1632.4,1.69936246]
[1693917785842,0.101,1632.8,1632.7,24.49928]
[1693917786046,0.101,1632.8,1632.7,27.49928]
[1693917786843,0.101,1632.8,1632.7,28.82728]
[1693917787027,0.101,1632.8,1632.7,32.10037643]
[1693917787224,0.101,1632.9,1632.8,1.69936246]
[1693917787558,0.101,1632.9,1632.8,24.40068246]
[1693917787761,0.101,1633.0,1632.8,24.40068246]
[1693917787968,0.101,1633.0,1632.9,1.328]
[1693917788155,0.101,1633.0,1632.9,22.70021]
[1693917788355,0.101,1633.0,1632.9,25.31613772]
[1693917789275,0.101,1633.1,1633.0,21.39843246]
[1693917789565,0.101,1633.1,1633.0,25.72643246]
[1693917791454,0.101,1633.1,1633.0,24.39843246]
[1693917792366,0.001,1633.1,1633.0,24.39843246]
[1693917792570,0.46048321,1633.1,1633.0,27.14576613]
[1693917792865,0.001,1633.1,1633.0,27.14576613]
[1693917793066,0.001,1633.1,1633.0,28.47376613]
[1693917794466,0.46048321,1633.1,1633.0,28.47376613]
[1693917800381,0.001,1633.1,1633.0,28.47376613]
[1693917806423,0.001,1633.1,1633.0,29.08495447]
[1693917809470,0.101,1633.3,1633.2,1.69936246]
[1693917809788,0.101,1633.3,1633.2,27.51912246]
[1693917809979,0.101,1633.3,1633.2,33.57123471]
[1693917812318,0.101,1633.4,1633.2,33.57123471]
[1693917812495,0.101,1633.4,1633.3,22.69571]
[1693917813700,0.101,1633.5,1633.4,1.69936246]
[1693917813905,0.101,1633.5,1633.4,22.56655854]
[1693917814131,0.101,1633.5,1633.4,25.56655854]
[1693917814505,0.101,1633.5,1633.4,26.89455854]
[1693917814817,2.24285553,1633.8,1633.7,24.48428]
[1693917814991,2.24285553,1633.8,1633.7,25.81228]
[1693917815194,0.101,1633.8,1633.7,26.46664522]
[1693917815720,0.101,1633.8,1633.7,32.58771522]
[1693917816018,0.101,1633.8,1633.7,35.58771522]
[1693917816517,0.101,1633.9,1633.8,20.06146246]
[1693917816820,0.101,1633.9,1633.8,24.38946246]
[1693917817015,0.101,1633.9,1633.8,27.13679613]
[1693917820114,0.5625642,1633.9,1633.8,27.13679613]
[1693917826010,1e-08,1633.9,1633.8,27.13679613]
[1693917826411,1.6011,1634.2,1633.8,27.13679613]
[1693917826729,1.6011,1634.2,1633.9,4.328]
[1693917826935,1.6011,1634.2,1633.9,22.68896]
[1693917827100,1.6011,1634.2,1633.9,25.74107225]
[1693917827301,2.14119662,1634.3,1634.1,1.69936246]
[1693917827537,0.5896,1634.6,1634.2,19.6856]
[1693917827737,2.14106564,1634.4,1634.2,18.3576]
[1693917827933,5.2080799,1634.4,1634.3,1.328]
[1693917828235,2.09106564,1634.4,1634.3,19.68446]
[1693917828436,0.101,1634.7,1634.3,19.68446]
[1693917828735,3.06701426,1634.6,1634.3,19.68446]
[1693917830032,3.54672569,1634.6,1634.3,19.68446]
[1693917831521,3.54672569,1634.6,1634.4,1.328]
[1693917831726,3.54672569,1634.6,1634.5,6.11807]
[1693917831915,4.02672569,1634.6,1634.5,6.11807]
[1693917832302,5.32736323,1634.6,1634.3,6.1186]
[1693917832513,0.53273632,1634.5,1634.3,6.1186]
[1693917832833,0.53273632,1634.5,1634.4,12.23667]
[1693917833035,4.40115269,1634.6,1634.4,12.23667]
[1693917833630,0.56031128,1634.5,1634.4,12.23667]
[1693917835434,0.56031128,1634.5,1634.4,6.11822]
[1693917837006,3.62732554,1634.5,1634.4,6.11822]
[1693917845026,3.62732554,1634.5,1634.4,12.23667]
[1693917845427,3.62732554,1634.5,1634.4,13.56467]
[1693917845826,3.62732554,1634.5,1634.4,19.68312]
[1693917848231,2.14080372,1634.6,1634.5,3.02736246]
[1693917848417,0.101,1634.7,1634.6,1.13430033]
[1693917848615,0.101,1634.7,1634.6,29.21700033]
[1693917849113,0.101,1634.7,1634.6,35.33470033]
[1693917849449,0.101,1634.7,1634.6,38.33717293]
[1693917849620,0.101,1634.7,1634.6,47.56896094]
[1693917849816,0.101,1634.7,1634.6,46.50567668]
[1693917850649,0.101,1634.8,1634.6,46.50567668]
[1693917851332,0.101,1634.8,1634.7,20.66325246]
[1693917851651,0.101,1634.8,1634.7,24.99125246]
[1693917851950,0.101,1634.8,1634.7,26.31596692]
[1693917853136,0.101,1635.0,1634.7,26.31596692]
[1693917853344,0.101,1635.0,1634.9,3.63926246]
[1693917853542,0.101,1635.0,1634.9,28.10558246]
[1693917854334,0.56668284,1635.0,1634.9,28.10558246]
[1693917854649,0.56668284,1635.0,1634.9,28.75994768]
[1693917855414,0.101,1635.0,1634.9,28.10558246]
[1693917855618,0.101,1635.0,1634.9,27.49368246]
[1693917855848,0.56660542,1635.0,1634.9,27.49368246]
[1693917856155,0.101,1635.0,1634.9,27.49368246]
[1693917856455,0.57198082,1635.0,1634.9,27.49368246]
[1693917856637,0.57198082,1635.0,1634.9,30.49648071]
[1693917857219,0.101,1635.0,1634.9,30.49648071]
[1693917857419,0.57160943,1635.0,1634.9,30.49648071]
[1693917860038,0.101,1635.2,1635.0,1.328]
[1693917860255,0.101,1635.2,1635.1,21.37485246]
[1693917860425,0.101,1635.2,1635.1,27.55673071]
[1693917860833,0.101,1635.2,1635.1,24.37485246]
[1693917862552,3.16801426,1635.2,1635.1,22.67549]
[1693917862755,3.16801426,1635.2,1635.1,12.23166]
[1693917863260,3.16801426,1635.2,1635.1,6.11583]
[1693917863848,0.101,1635.2,1635.1,6.11583]
[1693917864047,0.101,1635.2,1635.1,21.031475]
[1693917864754,0.101,1635.2,1635.1,19.67549]
[1693917867653,0.52352534,1635.2,1635.1,19.67549]
[1693917871981,3.5905396,1635.2,1635.1,6.11583]
[1693917872184,3.5905396,1635.2,1635.1,12.23166]
[1693917873286,3.5905396,1635.2,1635.1,19.67549]
[1693917873586,3.5905396,1635.2,1635.1,13.55966]
[1693917873789,3.5905396,1635.2,1635.1,19.67549]
[1693917874087,3.5905396,1635.2,1635.1,12.23166]
[1693917874293,4.16358231,1635.2,1635.1,12.23166]
[1693917876691,4.16358231,1635.2,1635.1,13.55966]
[1693917877094,0.52352534,1635.2,1635.1,13.55966]
[1693917882701,3.5905396,1635.2,1635.1,7.44383]
[1693917883214,3.5905396,1635.2,1635.1,6.11583]
[1693917885283,3.5905396,1635.2,1635.1,7.44383]
[1693917891621,3.5905396,1635.2,1635.0,12.23188]
[1693917891622,10.1859896,1635.2,1635.0,12.23188]
[1693917891832,4.08561322,1635.1,1635.0,12.23188]
[1693917892134,4.50805742,1635.1,1635.0,12.23188]
[1693917893409,3.48945846,1635.1,1635.0,12.23188]
[1693917893926,3.06701426,1635.1,1635.0,12.23188]
[1693917894302,3.45930273,1635.1,1635.0,12.23188]
[1693917894502,3.45930273,1635.1,1634.9,6.11649]
[1693917894702,3.45930273,1635.1,1634.9,6.11639]
[1693917894927,4.73995076,1635.1,1634.9,6.11639]
[1693917895316,4.73995076,1635.1,1634.9,7.44439]
[1693917895530,6.88009996,1635.1,1634.9,13.56097]
[1693917898751,5.59945193,1635.1,1635.0,1.328]
[1693917899045,5.59945193,1635.1,1635.0,7.4442]
[1693917900810,2.53243767,1635.1,1635.0,7.4442]
[1693917901014,2.53243767,1635.1,1635.0,13.5604]
[1693917901245,2.53243767,1635.1,1635.0,19.6766]
[1693917903417,3.80394377,1635.1,1635.0,19.6766]
[1693917904153,3.70394377,1635.1,1635.0,19.6766]
[1693917904592,3.79701767,1635.1,1635.0,19.6766]
[1693917905206,2.52551157,1635.1,1635.0,24.67162246]
[1693917905550,2.52551157,1635.1,1635.0,27.67162246]
[1693917906058,0.38536237,1635.1,1635.0,27.67162246]
[1693917906456,0.0930739,1635.1,1635.0,27.67162246]
[1693917906660,1.59244266,1635.4,1635.0,27.67162246]
[1693917906861,2.13969762,1635.5,1635.3,7.44283]
[1693917907077,5.20671188,1635.5,1635.3,7.44283]
[1693917907253,5.20671188,1635.5,1635.3,13.55791]
[1693917911477,6.53997619,1635.5,1635.3,13.55791]
[1693917911857,0.38581388,1635.4,1635.3,13.55791]
[1693917918471,0.38581388,1635.4,1635.3,19.67299]
[1693917922191,3.45282814,1635.4,1635.3,13.55791]
[1693917924206,3.45282814,1635.4,1635.3,12.22991]
[1693917924405,4.19329072,1635.4,1635.3,12.22991]
[1693917924613,4.19329072,1635.4,1635.3,6.11483]
[1693917924972,3.45282814,1635.4,1635.3,13.55791]
[1693917925295,3.45282814,1635.4,1635.3,19.67299]
[1693917925493,0.38581388,1635.4,1635.3,19.67299]
[1693917935347,0.38581388,1635.4,1635.3,13.55791]
[1693917935551,3.45282814,1635.4,1635.3,12.22991]
[1693917935847,4.01208072,1635.4,1635.3,12.22991]
[1693917937353,4.01208072,1635.4,1635.3,6.11483]
[1693917938518,4.49208072,1635.4,1635.3,6.11483]
[1693917940154,4.01208072,1635.4,1635.3,6.11483]
[1693917940334,4.01208072,1635.4,1635.3,12.22991]
[1693917944473,4.01208072,1635.4,1635.3,6.11483]
[1693917944673,4.01208072,1635.4,1635.1,6.1157]
[1693917944674,4.49208072,1635.4,1635.1,6.1157]
[1693917944878,3.46822233,1635.3,1635.2,6.11525]
[1693917945286,3.46822233,1635.3,1635.2,12.2307]
[1693917945493,3.86082877,1635.3,1635.2,12.2307]
[1693917947871,3.86082877,1635.3,1635.2,6.11525]
[1693917950344,16.57098877,1635.3,1635.0,6.11609]
[1693917950495,2.13709888,1635.2,1635.0,6.11609]
[1693917950688,3.06701426,1635.1,1634.9,0.49355626]
[1693917950895,3.06701426,1635.1,1634.8,12.23337]
[1693917950896,9.18290426,1635.1,1634.8,12.23337]
[1693917951216,9.18290426,1635.1,1634.8,12.23336]
[1693917951518,0.91829043,1635.0,1634.8,12.23336]
[1693917951695,3.06701426,1634.9,1634.8,12.23336]
[1693917952924,3.06701426,1634.9,1634.8,18.35031]
[1693917954118,3.06701426,1634.9,1634.8,6.1166]
[1693917954919,3.06701426,1634.9,1634.8,12.23355]
[1693917956621,3.06701426,1634.9,1634.8,19.6785]
[1693917957642,2.14028007,1635.0,1634.8,22.258051]
[1693917958042,2.14028007,1635.0,1634.8,24.902051]
[1693917959049,0.38978954,1634.9,1634.8,24.902051]
[1693917960449,0.38978954,1634.9,1634.8,1.328]
[1693917960773,0.38978954,1634.9,1634.7,6.11701]
[1693917960774,9.5733838,1634.9,1634.7,6.11701]
[1693917960934,3.06701426,1634.8,1634.6,6.11749]
[1693917961135,9.18402426,1634.8,1634.6,6.11749]
[1693917961853,3.06701426,1634.8,1634.6,6.11749]
[1693917962441,5.20755612,1634.8,1634.6,6.11749]
[1693917962610,17.44183612,1634.8,1634.5,14.86263]
[1693917963009,13.72276669,1634.8,1634.5,8.74473]
[1693917963242,19.83971669,1634.8,1634.5,6.11783]
[1693917963939,19.83971669,1634.8,1634.4,6.11838]
[1693917964141,19.83971669,1634.8,1634.4,12.23662]
[1693917964447,8.10156167,1634.7,1634.4,12.23662]
[1693917964668,8.10156167,1634.7,1634.4,18.35507]
[1693917964669,3.06701426,1634.6,1634.4,18.35507]
[1693917968360,3.06701426,1634.6,1634.4,12.23662]
[1693917973172,3.06701426,1634.6,1634.4,6.11824]
[1693917973374,15.30281426,1634.6,1634.3,16.48022246]
[1693917973567,0.30670143,1634.5,1634.4,6.11818]
[1693917973752,3.37371569,1634.5,1634.4,6.11818]
[1693917973948,3.37371569,1634.5,1634.3,16.48021246]
[1693917974150,3.06701426,1634.4,1634.3,8.66222]
[1693917974957,10.38757692,1634.4,1634.2,0.50006736]
[1693917975162,10.38757692,1634.4,1634.1,6.11935]
[1693917975163,16.50602692,1634.4,1634.1,12.23872]
[1693917975379,16.50602692,1634.4,1634.1,6.11935]
[1693917976051,16.50602692,1634.4,1634.0,11.65064246]
[1693917976052,16.50602692,1634.4,1634.0,17.77043246]
[1693917976253,18.45842692,1634.4,1634.1,6.11951]
[1693917976449,1.84584269,1634.3,1634.0,10.32253246]
[1693917976670,3.06701426,1634.2,1634.1,6.11957]
[1693917976872,9.18621426,1634.2,1634.0,8.62317]
[1693917977284,9.18622426,1634.2,1633.9,6.12003]
[1693917977451,0.91862143,1634.1,1633.9,14.72588]
[1693917977650,3.06701426,1634.0,1633.9,14.72588]
[1693917978780,3.06701426,1634.0,1633.9,20.8462]
[1693917979691,3.06701426,1634.0,1633.9,2.4857]
[1693917979854,10.10564369,1634.0,1633.7,10.94179807]
[1693917980054,10.10564369,1634.0,1633.8,1.06384052]
[1693917980250,16.22559369,1634.0,1633.8,1.06384052]
[1693917980455,16.22559369,1634.0,1633.7,2.5834]
[1693917980656,16.22559369,1634.0,1633.7,8.70434]
[1693917980959,1.62255937,1633.9,1633.7,14.82541]
[1693917981175,3.06701426,1633.8,1633.7,20.94648]
[1693917981487,2.42866544,1633.8,1633.7,14.90179974]
[1693917981667,2.42866544,1633.8,1633.7,13.3059247]
[1693917981868,2.42866544,1633.8,1633.7,8.78072974]
[1693917982055,2.42866544,1633.8,1633.7,13.3059247]
[1693917982564,2.42866544,1633.8,1633.7,14.90179974]
[1693917982565,1.29382458,1633.8,1633.7,14.90179974]
[1693917983356,1.29382458,1633.8,1633.7,8.78072974]
[1693917983661,1.29382458,1633.8,1633.7,13.3059247]
[1693917983880,1.29382458,1633.8,1633.7,14.90179974]
[1693917985191,1.29382458,1633.8,1633.7,8.78072974]
[1693917985569,1.29382458,1633.8,1633.7,7.1848547]
[1693917985886,1.29382458,1633.8,1633.7,8.78072974]
[1693917986964,1.29382458,1633.8,1633.7,7.1848547]
[1693917987174,1.29382458,1633.8,1633.7,13.3059247]
[1693917987373,1.29382458,1633.8,1633.7,7.1848547]
[1693917987679,1.29382458,1633.8,1633.7,8.78072974]
[1693917988103,1.29382458,1633.8,1633.7,7.1848547]
[1693917988523,1.29382458,1633.8,1633.7,13.3059247]
[1693917988710,1.29382458,1633.8,1633.7,7.1848547]
[1693917989176,1.68391988,1633.8,1633.7,7.1848547]
[1693917989804,1.68391988,1633.8,1633.7,8.78072974]
[1693917990317,1.68391988,1633.8,1633.7,9.42258682]
[1693917994074,1.68391988,1633.8,1633.7,13.94778178]
[1693917994391,1.68391988,1633.8,1633.7,16.46858049]
[1693917994749,1.68391988,1633.8,1633.7,18.06445553]
[1693917995036,0.3900953,1633.8,1633.7,16.50350712]
[1693917995217,0.3900953,1633.8,1633.7,21.98272004]
[1693917995536,2.14172072,1633.9,1633.7,21.98272004]
[1693917995742,5.20873498,1633.9,1633.8,3.03090937]
[1693917995907,5.20873498,1633.9,1633.8,15.27230937]
[1693917998468,5.20873498,1633.9,1633.8,16.23215967]
[1693918000841,5.20873498,1633.9,1633.8,15.27230937]
[1693918001042,5.20873498,1633.9,1633.8,16.23215967]
[1693918001220,5.20873498,1633.9,1633.8,22.35285967]
[1693918001612,2.14172072,1633.9,1633.8,22.35285967]
[1693918002237,2.14172072,1633.9,1633.8,24.23677834]
[1693918002439,2.14172072,1633.9,1633.8,25.83265338]
[1693918002640,1.00701442,1633.9,1633.8,25.83265338]
[1693918004187,1.00701442,1633.9,1633.8,26.47229956]
[1693918004344,1.39708889,1633.9,1633.8,26.47246891]
[1693918004533,1.39708889,1633.9,1633.8,25.83265338]
[1693918004737,0.39007447,1633.9,1633.8,27.11305208]
[1693918004939,2.14145864,1634.1,1633.8,27.11305208]
[1693918005240,2.14145864,1634.1,1634.0,12.2399]
[1693918005436,2.14145864,1634.1,1634.0,14.6318147]
[1693918005638,2.14145864,1634.1,1634.0,16.22768974]
[1693918016484,2.14145864,1634.1,1634.0,22.98711754]
[1693918017492,2.14145864,1634.1,1634.0,16.86716754]
[1693918017688,2.14145864,1634.1,1634.0,1.70372307]
[1693918017896,2.14145864,1634.1,1634.0,1.0639147]
[1693918018192,12.76606676,1634.1,1634.0,1.0639147]
[1693918018357,12.76606676,1634.1,1634.0,1.06376014]
[1693918018791,12.76606676,1634.1,1633.9,10.17314447]
[1693918018979,3.06701426,1634.0,1633.9,8.5776]
[1693918019175,3.06701426,1634.0,1633.9,9.64138589]
[1693918019382,5.34725566,1634.0,1633.9,9.64138589]
[1693918019669,5.34725566,1634.0,1633.9,7.18388589]
[1693918020202,5.34725566,1634.0,1633.9,8.77943036]
[1693918020421,12.8018432,1634.0,1633.9,1.06378589]
[1693918020575,6.6818932,1634.0,1633.8,14.79575]
[1693918020895,6.6818932,1634.0,1633.8,16.39146566]
[1693918021091,6.6818932,1634.0,1633.8,10.27090566]
[1693918021259,12.8018532,1634.0,1633.8,8.67519]
[1693918021460,1.24770138,1633.9,1633.8,14.79589]
[1693918022368,8.6244932,1634.0,1633.8,14.79589]
[1693918023514,8.6244932,1634.0,1633.8,14.54589]
[1693918023666,14.7444532,1634.0,1633.8,14.54589]
[1693918023868,14.7444532,1634.0,1633.8,8.42519]
[1693918031596,12.85587052,1634.0,1633.8,8.42519]
[1693918031792,0.42565872,1634.0,1633.9,1.328]
[1693918032113,0.42565872,1634.0,1633.9,21.38832246]
[1693918032114,0.39165872,1634.0,1633.9,21.38832246]
[1693918032278,0.39165872,1634.0,1633.9,24.52923334]
[1693918032985,2.14119662,1634.3,1633.9,30.79957134]
[1693918033186,2.14119662,1634.3,1633.9,28.14042168]
[1693918033381,2.14119662,1634.3,1634.2,19.6856]
[1693918033581,2.14119662,1634.3,1634.2,21.65416]
[1693918034394,0.30567495,1634.3,1634.2,21.65416]
[1693918034726,2.14081623,1634.6,1634.4,1.69936246]
[1693918035012,2.14081623,1634.6,1634.5,21.01021]
[1693918035217,2.14081623,1634.6,1634.5,19.68221]
[1693918035546,2.14081623,1634.6,1634.5,13.56414]
[1693918038711,2.14081623,1634.6,1634.5,19.68221]
[1693918038939,2.14081623,1634.6,1634.5,22.43218225]
[1693918039513,2.14054186,1634.8,1634.5,22.43218225]
[1693918039847,5.20755612,1634.8,1634.6,1.328]
[1693918039993,5.20755612,1634.8,1634.6,7.44547]
[1693918040183,5.20755612,1634.8,1634.6,6.11747]
[1693918041915,5.20755612,1634.8,1634.6,12.23517]
[1693918042486,0.28395426,1634.7,1634.6,12.23517]
[1693918042686,0.28395426,1634.7,1634.6,19.68087]
[1693918046809,0.28395426,1634.7,1634.6,6.11747]
[1693918047398,0.28395426,1634.7,1634.6,12.23517]
[1693918048342,0.28395426,1634.7,1634.6,13.56317]
[1693918048559,0.28395426,1634.7,1634.6,19.68087]
[1693918049643,0.28395426,1634.7,1634.6,23.96010946]
[1693918050458,0.28395426,1634.7,1634.6,33.07780946]
[1693918051157,2.14028063,1635.0,1634.6,33.07780946]
[1693918051443,2.14028063,1635.0,1634.8,20.05021246]
[1693918051610,0.28421367,1634.9,1634.8,20.05021246]
[1693918051811,0.28421367,1634.9,1634.8,21.34778574]
[1693918053011,0.28421367,1634.9,1634.8,22.67578574]
[1693918054538,0.28421367,1634.9,1634.8,25.67578574]
[1693918054970,2.1401492,1635.1,1634.8,25.67578574]
[1693918055173,2.1401492,1635.1,1635.0,18.3486]
[1693918056369,2.1401492,1635.1,1635.0,20.43731]
[1693918060072,2.1401492,1635.1,1635.0,21.76531]
[1693918063384,2.1401492,1635.1,1635.0,19.6766]
[1693918063689,2.1401492,1635.1,1635.0,13.5604]
[1693918063860,2.1401492,1635.1,1635.0,12.2324]
[1693918064051,2.42441289,1635.1,1635.0,6.1162]
[1693918065282,2.42441289,1635.1,1635.0,12.2324]
[1693918065451,2.42441289,1635.1,1635.0,6.1162]
[1693918066760,17.72308715,1635.1,1634.8,6.11667]
[1693918066961,4.83932298,1635.0,1634.8,6.11687]
[1693918067370,10.95555298,1635.0,1634.8,6.11687]
[1693918067561,4.83932298,1635.0,1634.8,18.35077]
[1693918067884,2.14041096,1634.9,1634.8,19.67877]
[1693918069193,2.14041096,1634.9,1634.8,13.56182]
[1693918071097,2.14041096,1634.9,1634.8,6.11687]
[1693918074068,8.25699096,1634.9,1634.7,6.11713]
[1693918074289,11.32400522,1634.9,1634.7,6.11713]
[1693918074581,13.26663074,1634.9,1634.7,6.11713]
[1693918078223,13.26663074,1634.9,1634.7,12.23446]
[1693918078410,5.20742522,1634.9,1634.7,12.23446]
[1693918079311,0.28403163,1634.8,1634.7,12.23446]
[1693918079886,0.28403163,1634.8,1634.7,13.29790238]
[1693918081713,0.28403163,1634.8,1634.7,12.23446]
[1693918087345,0.28403163,1634.8,1634.7,13.56246]
[1693918091345,0.28403163,1634.8,1634.7,22.06771125]
[1693918095763,0.28403163,1634.8,1634.7,15.95038125]
[1693918099651,0.28403163,1634.8,1634.7,13.56246]
[1693918101772,0.28403163,1634.8,1634.7,6.11713]
[1693918102440,3.35104589,1634.8,1634.6,10.31692246]
[1693918102802,3.35104589,1634.8,1634.6,13.93455246]
[1693918103071,3.35104589,1634.8,1634.6,15.26255246]
[1693918105165,3.35104589,1634.8,1634.7,1.328]
[1693918105166,0.28403163,1634.8,1634.7,1.328]
[1693918105379,0.28403163,1634.8,1634.7,13.56266]
[1693918105862,0.28403163,1634.8,1634.7,22.06042525]
[1693918107700,0.28403163,1634.8,1634.7,13.56266]
[1693918107904,0.28403163,1634.8,1634.7,12.23466]
[1693918115997,0.28403163,1634.8,1634.7,13.56266]
[1693918125732,0.28403163,1634.8,1634.7,19.67999]
[1693918133628,0.28403163,1634.8,1634.7,23.29117834]
[1693918133952,2.14041096,1634.9,1634.8,1.69936246]
[1693918134112,3.37243439,1635.3,1634.8,24.37821246]
[1693918134314,6.43944865,1635.3,1634.8,24.37821246]
[1693918134641,2.1401492,1635.1,1634.9,2.4175]
[1693918134833,2.1401492,1635.1,1635.0,18.3486]
[1693918135016,2.1401492,1635.1,1635.0,20.42521]
[1693918136344,2.1401492,1635.1,1635.0,24.78057246]
[1693918137043,1.9569,1635.4,1635.0,24.78057246]
[1693918137219,0.8118875,1635.3,1635.0,22.12457246]
[1693918137418,0.8118875,1635.3,1635.2,1.328]
[1693918137623,0.8118875,1635.3,1635.2,19.67435]
[1693918139146,1.09574085,1635.3,1635.2,23.58131746]
[1693918139836,1.8836,1635.5,1635.2,23.58131746]
[1693918140030,1.8836,1635.5,1635.4,13.55742]
[1693918140346,2.24049508,1635.6,1635.4,13.55742]
[1693918140347,2.24049508,1635.6,1635.4,19.67213]
[1693918140542,2.24049508,1635.6,1635.5,1.328]
[1693918140709,2.24049508,1635.6,1635.5,13.55666]
[1693918140917,2.24049508,1635.6,1635.5,19.67099]
[1693918143123,2.24049508,1635.6,1635.5,20.36002932]
[1693918143323,2.24049508,1635.6,1635.5,21.68802932]
[1693918143747,0.101,1635.6,1635.5,21.68802932]
[1693918144654,0.101,1635.8,1635.7,1.69936246]
[1693918144817,0.101,1635.8,1635.7,27.48172246]
[1693918145018,0.101,1635.8,1635.7,36.64348471]
[1693918145220,2.1391028,1635.9,1635.7,39.64348471]
[1693918145541,1.9743,1636.2,1636.0,18.33738]
[1693918145723,1.9743,1636.2,1636.1,19.66427]
[1693918146248,0.101,1636.2,1636.1,19.66427]
[1693918149780,0.101,1636.2,1636.1,19.66427]
[1693918152278,0.101,1636.2,1636.1,12.22418]
[1693918152480,3.16801426,1636.2,1636.0,6.1124]
[1693918152774,3.38381569,1636.1,1636.0,12.22473]
[1693918154149,3.65638426,1636.1,1636.0,12.22473]
[1693918155466,3.65638426,1636.1,1636.0,6.11233]
[1693918157744,3.65638426,1636.1,1636.0,12.22479]
[1693918158967,3.65638426,1636.1,1636.0,6.11233]
[1693918171961,3.33958283,1636.1,1636.0,13.55279]
[1693918178077,0.27256857,1636.1,1636.0,13.55279]
[1693918179169,0.27256857,1636.1,1636.0,19.66525]
[1693918179905,0.27256857,1636.1,1636.0,20.72781186]
[1693918180106,0.27256857,1636.1,1636.0,23.88455913]
[1693918180904,0.27256857,1636.1,1636.0,25.47841884]
[1693918183512,0.27256857,1636.1,1636.0,22.32167157]
[1693918185503,0.27256857,1636.1,1636.0,22.96147994]
[1693918185819,0.27256857,1636.1,1636.0,22.32167157]
[1693918186380,0.27256857,1636.1,1636.0,22.96147994]
[1693918186586,0.27256857,1636.1,1636.0,22.32167157]
[1693918187221,0.27256857,1636.1,1636.0,25.63780481]
[1693918189608,0.27256857,1636.1,1636.0,22.32167157]
[1693918189788,0.27256857,1636.1,1636.0,22.32169414]
[1693918190244,0.27256857,1636.1,1636.0,20.72781186]
[1693918190927,0.27256857,1636.1,1636.0,19.66525]
[1693918194240,0.27256857,1636.1,1636.0,13.55279]
[1693918194406,0.27256857,1636.1,1636.0,18.33725]
[1693918200144,0.27256857,1636.1,1636.0,21.3719447]
[1693918200313,0.101,1636.2,1636.1,1.69936246]
[1693918200508,0.101,1636.2,1636.1,23.6468208]
[1693918200822,0.101,1636.2,1636.1,24.67249317]
[1693918201031,0.101,1636.2,1636.1,25.73476524]
[1693918201209,0.101,1636.2,1636.1,29.4793867]
[1693918201637,0.101,1636.2,1636.1,28.41711463]
[1693918201812,0.101,1636.2,1636.1,27.39144226]
[1693918203006,0.101,1636.2,1636.1,28.71944226]
[1693918207725,0.101,1636.2,1636.1,29.78170704]
[1693918210348,0.101,1636.2,1636.1,28.10825392]
[1693918210553,0.101,1636.2,1636.1,24.36363246]
[1693918211456,0.101,1636.2,1636.1,25.42593175]
[1693918212637,0.101,1636.2,1636.1,25.90650334]
[1693918213627,0.101,1636.2,1636.1,27.4999421]
[1693918213827,0.101,1636.3,1636.1,27.4999421]
[1693918214053,0.101,1636.3,1636.2,2.74999421]
[1693918214239,0.101,1636.3,1636.2,24.08515421]
[1693918214436,0.101,1636.3,1636.2,27.35373362]
[1693918219066,0.101,1636.3,1636.2,28.68173362]
[1693918220466,0.101,1636.3,1636.2,34.79345362]
[1693918220763,0.101,1636.4,1636.2,34.79345362]
[1693918221063,0.101,1636.4,1636.3,25.17661471]
[1693918221566,0.3193435,1636.4,1636.3,25.17661471]
[1693918225159,0.3193435,1636.4,1636.3,26.23885995]
[1693918227687,0.3193435,1636.4,1636.3,25.17661471]
[1693918228001,0.3193435,1636.4,1636.3,21.97438246]
[1693918230321,3.38635776,1636.4,1636.0,2.240249]
[1693918230615,3.38635776,1636.4,1635.7,8.9926084]
[1693918230616,4.3676518,1636.2,1635.7,8.9926084]
[1693918230766,4.3676518,1636.2,1635.9,6.11276]
[1693918230973,6.2306518,1636.2,1635.9,6.11276]
[1693918231234,2.13884136,1636.1,1635.9,6.11276]
[1693918231526,3.06701426,1636.0,1635.9,6.11276]
[1693918232285,3.06701426,1636.0,1635.9,6.1164453]
[1693918234798,3.06701426,1636.0,1635.9,12.2292853]
[1693918234994,3.00979068,1636.1,1635.9,12.2292853]
[1693918235224,6.07680494,1636.1,1635.9,12.2292853]
[1693918239922,0.60768049,1636.0,1635.9,6.1164453]
[1693918240123,0.60768049,1636.0,1635.9,0.0036853]
[1693918240323,0.60768049,1636.0,1635.9,6.1165253]
[1693918244113,0.82486383,1636.0,1635.9,6.1165253]
[1693918244834,3.89187809,1636.0,1635.9,0.0036853]
[1693918245225,3.89187809,1636.0,1635.8,12.22597]
[1693918245430,3.89187809,1636.0,1635.7,13.92630246]
[1693918245431,0.38918781,1635.9,1635.7,13.92630246]
[1693918245636,0.38918781,1635.9,1635.7,7.81279246]
[1693918245832,0.38918781,1635.9,1635.7,7.81265246]
[1693918246034,3.45620207,1635.9,1635.6,6.11367]
[1693918246242,3.45620207,1635.9,1635.7,6.11346]
[1693918246243,0.34562021,1635.8,1635.7,6.11346]
[1693918246441,0.34562021,1635.8,1635.6,6.11376]
[1693918247947,0.34562021,1635.8,1635.6,12.22769]
[1693918249115,0.34562021,1635.8,1635.7,0.00370349]
[1693918249316,0.34562021,1635.8,1635.7,6.11729349]
[1693918252549,3.41263447,1635.8,1635.7,6.11729349]
[1693918253247,0.21718334,1636.0,1635.7,20.04383595]
[1693918253449,2.13884136,1636.1,1635.9,1.328]
[1693918253643,2.13884136,1636.1,1636.0,12.22492]
[1693918254219,2.13884136,1636.1,1636.0,12.22859471]